fUST/lending_fUST_20260607
["ID","MTS","AMOUNT","RATE_DAILY","PERIOD"]
[424397452,1780828156000,-1617.79776228,8.427e-05,2]
[424397453,1780828156000,-1617.79776228,8.427e-05,2]
[424397454,1780828156000,-1617.79776228,8.427e-05,2]
[424397450,1780828156000,-1617.79776228,8.427e-05,2]
[424397447,1780828156000,-1617.79776228,8.427e-05,2]
[424397445,1780828156000,-5000.0,8.345e-05,2]
[424397448,1780828156000,-253.88652541,8.427e-05,2]
[424397446,1780828156000,-175.643119,8.346e-05,2]
[424397442,1780828156000,-500.0,8.261e-05,2]
[424397440,1780828156000,-500.0,8.261e-05,2]
[424397444,1780828156000,-5000.0,8.262e-05,2]
[424397451,1780828156000,-1617.79776228,8.427e-05,2]
[424397480,1780828157000,-300.0,8.771e-05,2]
[424397482,1780828157000,-300.0,8.771e-05,2]
[424397481,1780828157000,-300.0,8.771e-05,2]
[424397484,1780828157000,-300.0,8.771e-05,2]
[424397489,1780828157000,-300.0,8.771e-05,2]
[424397486,1780828157000,-300.0,8.771e-05,2]
[424397485,1780828157000,-300.0,8.771e-05,2]
[424397487,1780828157000,-300.0,8.771e-05,2]
[424397479,1780828157000,-300.0,8.771e-05,2]
[424397483,1780828157000,-300.0,8.771e-05,2]
[424397476,1780828157000,-500.0,8.702e-05,2]
[424397472,1780828157000,-3296.97163064,8.427e-05,2]
[424397477,1780828157000,-300.0,8.771e-05,2]
[424397474,1780828157000,-766.75817748,8.6e-05,2]
[424397473,1780828157000,-500.0,8.428e-05,2]
[424397475,1780828157000,-175.643119,8.697e-05,2]
[424397471,1780828157000,-3296.97163064,8.427e-05,2]
[424397470,1780828157000,-3296.97163064,8.427e-05,2]
[424397469,1780828157000,-3296.97163064,8.427e-05,2]
[424397468,1780828157000,-3296.97163064,8.427e-05,2]
[424397466,1780828157000,-3296.97163064,8.427e-05,2]
[424397467,1780828157000,-3296.97163064,8.427e-05,2]
[424397488,1780828157000,-300.0,8.771e-05,2]
[424397478,1780828157000,-300.0,8.771e-05,2]
[424397491,1780828157000,-300.0,8.771e-05,2]
[424397502,1780828157000,-1000.0,0.0001,2]
[424397490,1780828157000,-300.0,8.771e-05,2]
[424397514,1780828157000,-492.0,0.00014407,2]
[424397512,1780828157000,-244.0,0.00013097,2]
[424397515,1780828157000,-499.86728603,0.00014892,2]
[424397516,1780828157000,-37.13902151,0.00015847,2]
[424397513,1780828157000,-1000.0,0.00014407,2]
[424397509,1780828157000,-902.4925921,0.00012171,2]
[424397511,1780828157000,-1000.0,0.00013097,2]
[424397510,1780828157000,-499.86728603,0.00012818,2]
[424397507,1780828157000,-864.0,0.00010824,2]
[424397508,1780828157000,-1000.0,0.00011906,2]
[424397504,1780828157000,-505.17239861,0.0001,2]
[424397493,1780828157000,-600.0,8.945e-05,2]
[424397503,1780828157000,-10250.06159584,0.0001,2]
[424397505,1780828157000,-175.643119,0.00010102,2]
[424397501,1780828157000,-720.0,9.84e-05,2]
[424397498,1780828157000,-500.0,9.524e-05,2]
[424397499,1780828157000,-175.643119,9.751e-05,2]
[424397495,1780828157000,-175.643119,9.049e-05,2]
[424397500,1780828157000,-500.0,9.798e-05,2]
[424397497,1780828157000,-175.643119,9.4e-05,2]
[424397496,1780828157000,-500.0,9.25e-05,2]
[424397492,1780828157000,-499.86728605,8.771e-05,2]
[424397494,1780828157000,-500.0,8.976e-05,2]
[424397506,1780828157000,-499.86728603,0.00010745,2]
[424397518,1780828160000,-962.86097849,0.00015847,2]
[424397517,1780828160000,-173.52244331,8.771e-05,2]
[424397522,1780828160000,-495.20445661,0.00017,2]
[424397521,1780828160000,-499.86728603,0.00016966,2]
[424397519,1780828160000,-791.0,0.00015847,2]
[424397520,1780828160000,-1000.0,0.00015899,2]
[424397534,1780828232000,-1052.0,0.0001683,2]
[424397705,1780828240000,-4606.7222871,0.00017953,2]
[424397686,1780828240000,-2736.55827228,0.0001683,2]
[424397693,1780828240000,-130793.90756063,0.00017953,2]
[424397691,1780828240000,-348.47392973,0.00017803,2]
[424397689,1780828240000,-228.79554339,0.00017,2]
[424397674,1780828240000,-1211.44172772,0.0001683,2]
[424398502,1780828246000,-700.0,0.00017953,2]
[424399325,1780829234000,-500.0,0.00011823,2]
[424399323,1780829234000,-500.0,0.00011823,2]
[424399320,1780829234000,-500.0,0.00011823,2]
[424399318,1780829234000,-500.0,0.00011823,2]
[424399322,1780829234000,-500.0,0.00011823,2]
[424399319,1780829234000,-500.0,0.00011823,2]
[424399324,1780829234000,-500.0,0.00011823,2]
[424399317,1780829234000,-500.0,0.00011823,2]
[424399311,1780829234000,-500.0,0.00011823,2]
[424399313,1780829234000,-500.0,0.00011823,2]
[424399316,1780829234000,-500.0,0.00011823,2]
[424399315,1780829234000,-500.0,0.00011823,2]
[424399326,1780829234000,-500.0,0.00011823,2]
[424399310,1780829234000,-500.0,0.00011823,2]
[424399312,1780829234000,-500.0,0.00011823,2]
[424399309,1780829234000,-500.0,0.00011823,2]
[424399308,1780829234000,-5000.0,0.00011705,2]
[424399314,1780829234000,-500.0,0.00011823,2]
[424399327,1780829234000,-637.06504678,0.00011823,2]
[424399321,1780829234000,-500.0,0.00011823,2]
[424399329,1780829234000,-500.0,0.00011823,2]
[424399328,1780829234000,-500.0,0.00011823,2]
[424399347,1780829234000,-500.0,0.00011823,2]
[424399345,1780829234000,-500.0,0.00011823,2]
[424399346,1780829234000,-500.0,0.00011823,2]
[424399344,1780829234000,-500.0,0.00011823,2]
[424399340,1780829234000,-500.0,0.00011823,2]
[424399342,1780829234000,-500.0,0.00011823,2]
[424399341,1780829234000,-500.0,0.00011823,2]
[424399339,1780829234000,-500.0,0.00011823,2]
[424399343,1780829234000,-500.0,0.00011823,2]
[424399338,1780829234000,-500.0,0.00011823,2]
[424399337,1780829234000,-500.0,0.00011823,2]
[424399332,1780829234000,-500.0,0.00011823,2]
[424399330,1780829234000,-500.0,0.00011823,2]
[424399333,1780829234000,-500.0,0.00011823,2]
[424399331,1780829234000,-500.0,0.00011823,2]
[424399334,1780829234000,-500.0,0.00011823,2]
[424399335,1780829234000,-500.0,0.00011823,2]
[424399336,1780829234000,-500.0,0.00011823,2]
[424399360,1780829235000,-500.0,0.00011823,2]
[424399368,1780829235000,-500.0,0.00011823,2]
[424399365,1780829235000,-500.0,0.00011823,2]
[424399364,1780829235000,-500.0,0.00011823,2]
[424399366,1780829235000,-500.0,0.00011823,2]
[424399362,1780829235000,-500.0,0.00011823,2]
[424399363,1780829235000,-500.0,0.00011823,2]
[424399361,1780829235000,-500.0,0.00011823,2]
[424399359,1780829235000,-500.0,0.00011823,2]
[424399357,1780829235000,-500.0,0.00011823,2]
[424399349,1780829235000,-500.0,0.00011823,2]
[424399356,1780829235000,-500.0,0.00011823,2]
[424399370,1780829235000,-500.0,0.00011823,2]
[424399354,1780829235000,-500.0,0.00011823,2]
[424399355,1780829235000,-500.0,0.00011823,2]
[424399353,1780829235000,-500.0,0.00011823,2]
[424399352,1780829235000,-500.0,0.00011823,2]
[424399351,1780829235000,-500.0,0.00011823,2]
[424399350,1780829235000,-500.0,0.00011823,2]
[424399348,1780829235000,-500.0,0.00011823,2]
[424399358,1780829235000,-402.25656556,0.00011823,2]
[424399367,1780829235000,-500.0,0.00011823,2]
[424399382,1780829235000,-300.0,0.00012058,2]
[424399371,1780829235000,-500.0,0.00011823,2]
[424399369,1780829235000,-500.0,0.00011823,2]
[424399393,1780829235000,-234.23343029,0.00012058,2]
[424399391,1780829235000,-300.0,0.00012058,2]
[424399390,1780829235000,-300.0,0.00012058,2]
[424399387,1780829235000,-300.0,0.00012058,2]
[424399389,1780829235000,-300.0,0.00012058,2]
[424399388,1780829235000,-300.0,0.00012058,2]
[424399386,1780829235000,-300.0,0.00012058,2]
[424399383,1780829235000,-300.0,0.00012058,2]
[424399384,1780829235000,-300.0,0.00012058,2]
[424399392,1780829235000,-300.0,0.00012058,2]
[424399381,1780829235000,-300.0,0.00012058,2]
[424399385,1780829235000,-300.0,0.00012058,2]
[424399374,1780829235000,-500.0,0.00011823,2]
[424399375,1780829235000,-500.0,0.00011823,2]
[424399373,1780829235000,-500.0,0.00011823,2]
[424399372,1780829235000,-500.0,0.00011823,2]
[424399377,1780829235000,-3555.52065122,0.00011943,2]
[424399380,1780829235000,-300.0,0.00012058,2]
[424399378,1780829235000,-300.0,0.00012058,2]
[424399379,1780829235000,-300.0,0.00012058,2]
[424399376,1780829235000,-5000.0,0.00011824,2]
[424399415,1780829345000,-816.18697219,0.00011818,2]
[424399434,1780829364000,-300.0,0.00012759,2]
[424399433,1780829364000,-300.0,0.00012759,2]
[424399432,1780829364000,-300.0,0.00012759,2]
[424399431,1780829364000,-300.0,0.00012759,2]
[424399430,1780829364000,-300.0,0.00012759,2]
[424399429,1780829364000,-300.0,0.00012759,2]
[424399427,1780829364000,-300.0,0.00012759,2]
[424399428,1780829364000,-300.0,0.00012759,2]
[424399426,1780829364000,-300.0,0.00012759,2]
[424399423,1780829364000,-300.0,0.0001251,2]
[424399424,1780829364000,-300.0,0.00012759,2]
[424399422,1780829364000,-169.796997,0.00012064,2]
[424399420,1780829364000,-306.05955432,0.00011937,2]
[424399419,1780829364000,-4183.81302781,0.00011818,2]
[424399418,1780829364000,-540.22565656,0.00011817,2]
[424399416,1780829364000,-500.0,0.00011817,2]
[424399417,1780829364000,-500.0,0.00011817,2]
[424399436,1780829364000,-300.0,0.00012759,2]
[424399425,1780829364000,-300.0,0.00012759,2]
[424399435,1780829364000,-300.0,0.00012759,2]
[424399421,1780829364000,-365.76656971,0.00012058,2]
[424399439,1780829364000,-720.0,0.00013264,2]
[424399438,1780829364000,-300.0,0.00012759,2]
[424399457,1780829364000,-175.6431201,0.00013285,2]
[424399453,1780829364000,-1783.95010987,0.00013284,2]
[424399456,1780829364000,-1783.95010987,0.00013284,2]
[424399455,1780829364000,-1783.95010987,0.00013284,2]
[424399452,1780829364000,-1783.95010987,0.00013284,2]
[424399454,1780829364000,-1783.95010987,0.00013284,2]
[424399451,1780829364000,-1783.95010987,0.00013284,2]
[424399447,1780829364000,-1783.95010987,0.00013284,2]
[424399450,1780829364000,-1783.95010987,0.00013284,2]
[424399448,1780829364000,-1783.95010987,0.00013284,2]
[424399437,1780829364000,-300.0,0.00012759,2]
[424399449,1780829364000,-1783.95010987,0.00013284,2]
[424399440,1780829364000,-1783.95010987,0.00013284,2]
[424399442,1780829364000,-1783.95010987,0.00013284,2]
[424399441,1780829364000,-1783.95010987,0.00013284,2]
[424399445,1780829364000,-1783.95010987,0.00013284,2]
[424399446,1780829364000,-1783.95010987,0.00013284,2]
[424399443,1780829364000,-1783.95010987,0.00013284,2]
[424399444,1780829364000,-1783.95010987,0.00013284,2]
[424399463,1780829365000,-151.71,0.00013834,2]
[424399459,1780829365000,-500.0,0.00013698,2]
[424399458,1780829365000,-595.52855498,0.00013698,2]
[424399460,1780829365000,-500.0,0.00013698,2]
[424399461,1780829365000,-500.0,0.00013698,2]
[424399462,1780829365000,-1000.0,0.00013699,2]
[424399465,1780829365000,-4721.00694491,0.00015,2]
[424399473,1780829365000,-3311.27687156,0.00017,2]
[424399466,1780829365000,-209.10338948,0.00016009,2]
[424399467,1780829365000,-1000.0,0.0001605,2]
[424399469,1780829365000,-3016.9754739,0.00016109,2]
[424399471,1780829365000,-435.48585164,0.00016109,2]
[424399470,1780829365000,-929.3863999,0.00016109,2]
[424399468,1780829365000,-3286.6294614,0.00016109,2]
[424399472,1780829365000,-209.10338945,0.00016776,2]
[424399464,1780829365000,-864.0,0.00014591,2]
[424399474,1780829371000,-1440.84259151,0.00017,2]
[424399557,1780829432000,-491.89280891,0.00013283,2]
[424399554,1780829432000,-63.50425763,0.00013283,2]
[424399552,1780829432000,-1422.4335661,0.00011851,2]
[424399559,1780829432000,-925.28152465,0.00013283,2]
[424399571,1780829432000,-1480.67859119,0.00013283,2]
[424399562,1780829432000,-1480.67859119,0.00013283,2]
[424399566,1780829432000,-1480.67859119,0.00013283,2]
[424399568,1780829432000,-1480.67859119,0.00013283,2]
[424399575,1780829432000,-205.50274759,0.00013283,2]
[424399564,1780829432000,-1480.67859119,0.00013283,2]
[424400246,1780829438000,-1480.67859119,0.00013283,2]
[424400245,1780829438000,-1275.1758436,0.00013283,2]
[424400248,1780829438000,-171.13618406,0.00013283,2]
[424400247,1780829438000,-1480.67859119,0.00013283,2]
[424400252,1780829438000,-1480.67859119,0.00013283,2]
[424400250,1780829438000,-1480.67859119,0.00013283,2]
[424400249,1780829438000,-1480.67859119,0.00013283,2]
[424400254,1780829438000,-1480.67859119,0.00013283,2]
[424400251,1780829438000,-1480.67859119,0.00013283,2]
[424400255,1780829438000,-1480.67859119,0.00013283,2]
[424400258,1780829438000,-1480.67859119,0.00013283,2]
[424400268,1780829438000,-151.0,0.00017937,2]
[424400270,1780829438000,-151.0,0.00018,2]
[424400263,1780829438000,-500.0,0.00013698,2]
[424400267,1780829438000,-209.10338945,0.00017544,2]
[424400260,1780829438000,-1480.67859119,0.00013283,2]
[424400259,1780829438000,-1480.67859119,0.00013283,2]
[424400265,1780829438000,-1422.4335661,0.00015658,2]
[424400266,1780829438000,-5247.88053693,0.00017,2]
[424400262,1780829438000,-500.0,0.00013698,2]
[424400264,1780829438000,-500.0,0.00013698,2]
[424400269,1780829438000,-151.0,0.00018,2]
[424400261,1780829438000,-5000.0,0.00013561,2]
[424400271,1780829439000,-209.10338945,0.00018311,2]
[424400272,1780829439000,-197.75336512,0.00018467,2]
[424400273,1780829439000,-161.10134367,0.00018476,2]
[424400277,1780829439000,-452.21,0.0001863,2]
[424400276,1780829439000,-186.0,0.00018508,2]
[424400275,1780829439000,-1842.845,0.00018508,2]
[424400281,1780829439000,-151.0,0.00019033,2]
[424400278,1780829439000,-170.0,0.00018678,2]
[424400279,1780829439000,-171.4312456,0.00018888,2]
[424400280,1780829439000,-452.21,0.00018904,2]
[424400283,1780829439000,-4909.03490423,0.00019078,2]
[424400282,1780829439000,-209.10338945,0.00019078,2]
[424400274,1780829439000,-151.0,0.00018485,2]
[424400291,1780829442000,-5758.7861882,0.00019078,2]
[424400292,1780829442000,-4762.98465152,0.00019078,2]
[424400324,1780829446000,-288.87684538,0.00018887,2]
[424400360,1780829447000,-3845.30569132,0.00019078,2]
[424400355,1780829447000,-4711.12315462,0.00018887,2]
[424400357,1780829447000,-3626.64559042,0.00019078,2]
[424400467,1780829449000,-10938.71562326,0.00019078,2]
[424400485,1780829787000,-551.21027201,0.00012888,2]
[424400487,1780829841000,-209.10338945,0.00012888,2]
[424400488,1780829853000,-769.27675827,0.00012759,2]
[424400496,1780830210000,-500.0,0.00012888,2]
[424400524,1780830344000,-244.22462175,0.00012757,2]
[424400523,1780830344000,-500.0,0.00012757,2]
[424400522,1780830344000,-500.0,0.00012757,2]
[424400541,1780830549000,-1590.85240701,0.00013544,2]
[424400533,1780830549000,-500.0,0.00012377,2]
[424400535,1780830549000,-5000.0,0.00012378,2]
[424400534,1780830549000,-527.00272284,0.00012377,2]
[424400536,1780830549000,-450.58897485,0.00012503,2]
[424400538,1780830549000,-253.88652541,0.00013544,2]
[424400540,1780830549000,-1590.85240701,0.00013544,2]
[424400539,1780830549000,-1590.85240701,0.00013544,2]
[424400542,1780830549000,-1590.85240701,0.00013544,2]
[424400537,1780830549000,-5000.0,0.00012629,2]
[424400545,1780830549000,-1590.85240701,0.00013544,2]
[424400543,1780830549000,-1590.85240701,0.00013544,2]
[424400552,1780830549000,-1590.85240701,0.00013544,2]
[424400549,1780830549000,-1590.85240701,0.00013544,2]
[424400550,1780830549000,-1590.85240701,0.00013544,2]
[424400551,1780830549000,-1590.85240701,0.00013544,2]
[424400548,1780830549000,-1590.85240701,0.00013544,2]
[424400547,1780830549000,-1590.85240701,0.00013544,2]
[424400544,1780830549000,-1590.85240701,0.00013544,2]
[424400546,1780830549000,-1590.85240701,0.00013544,2]
[424400553,1780830549000,-373.8788101,0.00013544,2]
[424400557,1780830576000,-580.14329972,0.00013544,2]
[424400556,1780830576000,-1278.16022795,0.00013544,2]
[424400555,1780830576000,-719.77462489,0.00012253,2]
[424400560,1780830577000,-1071.89573833,0.00013544,2]
[424400559,1780830577000,-5000.0,0.0001213,2]
[424400558,1780830577000,197.69,0.00023287,120]
[424400562,1780830577000,-1609.71763619,0.00013544,2]
[424400561,1780830577000,-42.32140186,0.00013544,2]
[424400564,1780830577000,-1652.03903805,0.00013544,2]
[424400566,1780830577000,-1652.03903805,0.00013544,2]
[424400565,1780830577000,-1652.03903805,0.00013544,2]
[424400567,1780830577000,-1069.13847902,0.00013544,2]
[424400563,1780830577000,-1652.03903805,0.00013544,2]
[424400584,1780830632000,-1043.02980477,0.00013544,2]
[424400582,1780830632000,-1885.49935926,0.00013544,2]
[424400583,1780830632000,-305.4205048,0.00013544,2]
[424400587,1780830632000,-600.0,0.00013547,2]
[424400586,1780830632000,-703.81133119,0.00013544,2]
[424400588,1780830632000,-720.0,0.00014902,2]
[424400585,1780830632000,-1062.23899998,0.00013544,2]
[424400589,1780830633000,-708.67997526,0.00016392,2]
[424400616,1780830638000,-1005.00197067,0.00016789,2]
[424400615,1780830638000,-896.9778038,0.0001674,2]
[424400613,1780830638000,-387.04482269,0.00016617,2]
[424400611,1780830638000,-155.32002474,0.00016392,2]
[424400627,1780830641000,-1241.79895257,0.00016789,2]
[424400623,1780830641000,-236.7969819,0.00016789,2]
[424400625,1780830641000,-1241.79895257,0.00016789,2]
[424400628,1780830641000,-1241.79895257,0.00016789,2]
[424400624,1780830641000,-177.72056778,0.00016789,2]
[424400633,1780830641000,-1241.79895257,0.00016789,2]
[424400626,1780830641000,-1241.79895257,0.00016789,2]
[424400634,1780830641000,-908.61658617,0.00016789,2]
[424400632,1780830641000,-1241.79895257,0.00016789,2]
[424400629,1780830641000,-1241.79895257,0.00016789,2]
[424400631,1780830641000,-1241.79895257,0.00016789,2]
[424400630,1780830641000,-1241.79895257,0.00016789,2]
[424400647,1780830643000,-333.1823664,0.00016789,2]
[424400648,1780830643000,-1241.79895257,0.00016789,2]
[424400649,1780830643000,-1241.79895257,0.00016789,2]
[424400650,1780830643000,-1241.79895257,0.00016789,2]
[424400654,1780830643000,-1241.79895257,0.00016789,2]
[424400656,1780830643000,-1241.79895257,0.00016789,2]
[424400674,1780830643000,-186.0,0.00018435,2]
[424400668,1780830643000,-369.93881292,0.00018253,2]
[424400672,1780830643000,-152.0,0.00018329,2]
[424400670,1780830643000,-151.0,0.00018314,2]
[424400660,1780830643000,-152.0,0.00017667,2]
[424400662,1780830643000,-151.0,0.00017766,2]
[424400676,1780830643000,-177.97802861,0.00018471,2]
[424400665,1780830643000,-1000.0,0.00018031,2]
[424400658,1780830643000,-823.3845847,0.0001679,2]
[424400678,1780830643000,-488.04,0.0001863,2]
[424400680,1780830643000,-765.10066742,0.000187,2]
[424400682,1780830643000,-239.78112323,0.000187,2]
[424400684,1780830643000,-543.90017223,0.000187,2]
[424400652,1780830643000,-1241.79895257,0.00016789,2]
[424400664,1780830643000,-500.0,0.00017852,2]
[424400705,1780830933000,-1511.22105887,0.00012917,2]
[424400716,1780831245000,-5000.0,0.00012786,2]
[424400717,1780831245000,-1393.30918514,0.00012945,2]
[424400718,1780831245000,-334.52268096,0.00013045,2]
[424400720,1780831245000,-1135.1617203,0.00013045,2]
[424400721,1780831245000,-1001.8446933,0.00013045,2]
[424400719,1780831245000,-1135.1617203,0.00013045,2]
[424400731,1780831253000,-785.3892106,0.00013045,2]
[424400730,1780831253000,-1135.1617203,0.00013045,2]
[424400729,1780831253000,-1135.1617203,0.00013045,2]
[424400727,1780831253000,-1135.1617203,0.00013045,2]
[424400728,1780831253000,-1135.1617203,0.00013045,2]
[424400726,1780831253000,-1135.1617203,0.00013045,2]
[424400724,1780831253000,-1135.1617203,0.00013045,2]
[424400725,1780831253000,-1135.1617203,0.00013045,2]
[424400722,1780831253000,-133.317027,0.00013045,2]
[424400723,1780831253000,-1135.1617203,0.00013045,2]
[424400732,1780831262000,-5000.0,0.00012915,2]
[424400733,1780831262000,-349.7725097,0.00013045,2]
[424400734,1780831262000,-1135.1617203,0.00013045,2]
[424400735,1780831262000,-1135.1617203,0.00013045,2]
[424400738,1780831262000,-109.5806091,0.00013045,2]
[424400737,1780831262000,-1135.1617203,0.00013045,2]
[424400736,1780831262000,-1135.1617203,0.00013045,2]
[424400747,1780831269000,-531.6535941,0.00013045,2]
[424400746,1780831269000,-1234.48837082,0.00013045,2]
[424400745,1780831269000,-1234.48837082,0.00013045,2]
[424400744,1780831269000,-1234.48837082,0.00013045,2]
[424400742,1780831269000,-1234.48837082,0.00013045,2]
[424400743,1780831269000,-1234.48837082,0.00013045,2]
[424400740,1780831269000,-1135.1617203,0.00013045,2]
[424400739,1780831269000,-1025.5811112,0.00013045,2]
[424400741,1780831269000,-1135.1617203,0.00013045,2]
[424400749,1780831278000,-702.83477672,0.00013045,2]
[424400751,1780831278000,-1234.48837082,0.00013045,2]
[424400750,1780831278000,-1234.48837082,0.00013045,2]
[424400753,1780831278000,-1393.30918511,0.00014441,2]
[424400754,1780831278000,-720.0,0.00014635,2]
[424400752,1780831278000,-600.0,0.00013305,2]
[424400755,1780831279000,4114.87929653,0.00012915,2]
[424400756,1780831291000,-500.0,0.00012914,2]
[424400765,1780831531000,-755.84208784,0.00012685,2]
[424400768,1780831654000,-170.57777634,0.00012685,2]
[424400773,1780831756000,-380.96088176,0.00012557,2]
[424400772,1780831756000,-500.0,0.00012557,2]
[424400771,1780831756000,-1107.46529963,0.00012457,2]
[424400783,1780831758000,-500.0,0.00012557,2]
[424400780,1780831758000,-500.0,0.00012557,2]
[424400781,1780831758000,-500.0,0.00012557,2]
[424400782,1780831758000,-480.42492488,0.00012557,2]
[424400774,1780831758000,-119.03911824,0.00012557,2]
[424400775,1780831758000,-500.0,0.00012557,2]
[424400777,1780831758000,-500.0,0.00012557,2]
[424400776,1780831758000,-500.0,0.00012557,2]
[424400785,1780831758000,-500.0,0.00012557,2]
[424400779,1780831758000,-500.0,0.00012557,2]
[424400786,1780831758000,-500.0,0.00012557,2]
[424400778,1780831758000,-500.0,0.00012557,2]
[424400784,1780831758000,-500.0,0.00012557,2]
[424400787,1780831758000,-500.0,0.00012557,2]
[424400797,1780831758000,-500.0,0.00012557,2]
[424400795,1780831758000,-450.0,0.00012557,2]
[424400798,1780831758000,-478.40135245,0.00012557,2]
[424400794,1780831758000,-500.0,0.00012557,2]
[424400796,1780831758000,-500.0,0.00012557,2]
[424400793,1780831758000,-500.0,0.00012557,2]
[424400791,1780831758000,-500.0,0.00012557,2]
[424400790,1780831758000,-500.0,0.00012557,2]
[424400789,1780831758000,-500.0,0.00012557,2]
[424400788,1780831758000,-500.0,0.00012557,2]
[424400792,1780831758000,-500.0,0.00012557,2]
[424400802,1780831831000,-1676.33420601,0.00012558,2]
[424400827,1780831838000,-2436.4258214,0.00015675,2]
[424400819,1780831838000,-3323.66579399,0.00012558,2]
[424400820,1780831838000,-600.0,0.00013067,2]
[424400822,1780831838000,-720.0,0.00014374,2]
[424400823,1780831838000,-863.27998475,0.00014659,2]
[424400821,1780831838000,-1107.46529958,0.00013794,2]
[424400824,1780831838000,-1107.46529958,0.00015131,2]
[424400828,1780831838000,-171.4312456,0.00015675,2]
[424400831,1780831838000,-322.75471047,0.0001595,2]
[424400825,1780831838000,-500.0,0.00015648,2]
[424400832,1780831838000,-1107.46529958,0.00016468,2]
[424400826,1780831838000,-2844.8671322,0.0001566,2]
[424400830,1780831838000,-864.0,0.00015811,2]
[424400833,1780831838000,-730.1932366,0.00016477,2]
[424400835,1780831838000,-166.54119621,0.00016789,2]
[424400836,1780831838000,-157.7897064,0.00016789,2]
[424400834,1780831838000,-3189.4468035,0.00016657,2]
[424400829,1780831838000,-426.52072078,0.00015791,2]
[424400860,1780831840000,-141.98444677,0.00016789,2]
[424400862,1780831841000,-386.26405466,0.00017055,2]
[424400866,1780831841000,-48.81874262,0.00017743,2]
[424400864,1780831841000,-1000.0,0.00017392,2]
[424400863,1780831841000,-2436.4258214,0.00017112,2]
[424400865,1780831841000,-151.0,0.00017743,2]
[424400867,1780831841000,-114.14396338,0.00017743,2]
[424400869,1780831841000,-127.80489967,0.00018121,7]
[424400861,1780831841000,-495.20445661,0.00017,2]
[424400870,1780831841000,-91.41817517,0.00018121,7]
[424400872,1780831841000,-155.22283741,0.00018463,2]
[424400875,1780831841000,-2224.24310911,0.0001853,2]
[424400873,1780831841000,-150.07371123,0.00018465,2]
[424400868,1780831841000,-1107.46529958,0.00017806,2]
[424400876,1780831841000,-29.26584582,0.00018535,2]
[424400871,1780831841000,-151.0,0.00018291,2]
[424400874,1780831841000,-172.64932694,0.00018465,2]
[424400892,1780831846000,-390.96645399,0.00018535,2]
[424400893,1780831846000,-2436.4258214,0.00018549,2]
[424400894,1780831846000,-151.5,0.00018565,2]
[424400896,1780831846000,-166.52029664,0.00018565,2]
[424400897,1780831846000,-151303.35605567,0.000186,2]
[424400898,1780831846000,-260.22132817,0.000186,2]
[424400895,1780831846000,-151.5,0.00018565,2]
[424400906,1780831847000,-819.30227355,0.000186,2]
[424400905,1780831847000,-6737.03391632,0.000186,2]
[424400904,1780831847000,-396.54944253,0.000186,2]
[424400902,1780831847000,-3832.91517534,0.000186,2]
[424400903,1780831847000,-1902.04860122,0.000186,2]
[424400907,1780831847000,-359.66901507,0.000186,2]
[424400912,1780831912000,-500.0,0.00012557,2]
[424400913,1780831929000,-365.51492437,0.00012557,2]
[424400914,1780831946000,-5000.0,0.00012683,2]
[424400925,1780832310000,-4909.03490423,0.0001268,2]
[424400928,1780832456000,7941.16,0.0002328,120]
[424400938,1780832938000,-151.0,0.00012227,2]
[424400946,1780832951000,-820.72192377,0.0001245,2]
[424400948,1780832951000,-820.72192377,0.0001245,2]
[424400947,1780832951000,-820.72192377,0.0001245,2]
[424400945,1780832951000,-820.72192377,0.0001245,2]
[424400944,1780832951000,-820.72192377,0.0001245,2]
[424400942,1780832951000,-766.94910463,0.00012351,2]
[424400941,1780832951000,-4698.0,0.00012227,2]
[424400943,1780832951000,-234.16587668,0.0001245,2]
[424400940,1780832951000,-151.0,0.00012227,2]
[424400959,1780832952000,-403.48423628,0.0001245,2]
[424400955,1780832952000,-820.72192377,0.0001245,2]
[424400957,1780832952000,-500.0,0.0001245,2]